bitfinex-derivatives/quotes_SOLF0:USTF0_20241215
["timestamp","ask_amount","ask_price","bid_price","bid_amount"]
[1734301657766,6.31929363,218.43,218.37,6.31929363]
[1734301657969,6.31929363,218.43,218.38,5.08558645]
[1734301658165,6.31929363,218.43,218.37,6.31929363]
[1734301658358,8.60879363,218.43,218.38,2.2899]
[1734301659165,8.60879363,218.43,218.41,5.46438552]
[1734301659365,6.31929363,218.43,218.35,0.35904]
[1734301659559,6.31929363,218.4,218.36,5.08308456]
[1734301660863,6.31929363,218.4,218.36,7.37318456]
[1734301661264,8.60899363,218.4,218.37,5.46758282]
[1734301661762,2.2899,218.39,218.37,5.46758282]
[1734301663064,6.31929363,218.4,218.37,5.46758282]
[1734301663264,8.60899363,218.4,218.37,5.46758282]
[1734301663561,6.31929363,218.4,218.35,0.35904]
[1734301664165,6.31929363,218.38,218.35,5.77874166]
[1734301665373,6.31929363,218.36,218.26,5.06903839]
[1734301665671,6.31929363,218.34,218.27,6.31929363]
[1734301665869,6.31929363,218.34,218.32,5.39770835]
[1734301667468,2.2905,218.33,218.25,2.2912]
[1734301667663,6.31929363,218.32,218.25,6.31929363]
[1734301667863,6.31929363,218.32,218.22,1.5529]
[1734301668169,6.31929363,218.32,218.27,2.2911]
[1734301669273,6.31929363,218.32,218.3,5.61614358]
[1734301669469,6.31929363,218.32,218.18,3.32]
[1734301669669,6.31929363,218.32,218.23,6.31929363]
[1734301670269,2.2908,218.31,218.25,2.2913]
[1734301670671,2.2908,218.31,218.23,6.31929363]
[1734301671675,2.2908,218.31,218.27,5.45633647]
[1734301672073,8.61009363,218.3,218.27,5.45633647]
[1734301672375,3.12,218.29,218.27,5.45633647]
[1734301673775,6.31929363,218.28,218.27,5.45633647]
[1734301676676,2.2912,218.27,218.2,6.31929363]
[1734301676875,6.31929363,218.26,218.2,6.31929363]
[1734301677367,6.31929363,218.26,218.21,2.2916]
[1734301677572,3.12,218.27,218.23,5.4185836]
[1734301678477,3.12,218.27,218.25,2.2913]
[1734301680977,2.2908,218.3,218.25,2.2913]
[1734301681181,3.12,218.28,218.25,2.2913]
[1734301681576,3.12,218.29,218.25,2.2912]
[1734301682277,2.2907,218.31,218.23,5.4185836]
[1734301682478,9.43929363,218.3,218.26,2.2912]
[1734301682875,6.31929363,218.3,218.26,2.2912]
[1734301683082,189.01082891,218.49,218.29,6.31929363]
[1734301683279,6.31929363,218.38,218.24,2.9962]
[1734301683574,6.31929363,218.38,218.29,6.31929363]
[1734301684172,6.31929363,218.38,218.31,2.2906]
[1734301684373,6.31929363,218.38,218.29,6.31929363]
[1734301684777,6.31929363,218.38,218.33,2.2905]
[1734301684778,8.60919363,218.38,218.33,2.2905]
[1734301685573,9.43929363,218.38,218.29,6.31929363]
[1734301686580,9.43929363,218.38,218.35,2.2902]
[1734301689480,6.31929363,218.38,218.35,2.2902]
[1734301689681,6.31929363,218.38,218.3,6.31929363]
[1734301690183,6.31929363,218.38,218.35,2.2902]
[1734301690880,3.12,218.39,218.3,6.31929363]
[1734301691084,3.12,218.39,218.36,2.2901]
[1734301691284,9.43929363,218.39,218.36,2.2901]
[1734301696385,2.9648,218.43,218.35,5.41310366]
[1734301696584,6.31929363,218.4,218.38,2.2899]
[1734301696983,2.92,218.42,218.35,5.41310366]
[1734301697186,6.31929363,218.41,218.35,5.41310366]
[1734301697589,6.31929363,218.41,218.38,2.2898]
[1734301697984,6.31929363,218.41,218.35,5.41310366]
[1734301698888,9.23929363,218.42,218.35,5.41310366]
[1734301699086,2.92,218.42,218.35,5.41310366]
[1734301699294,6.31929363,218.36,218.35,5.41310366]
[1734301699488,2.92,218.42,218.35,7.70320366]
[1734301699489,6.31929363,218.38,218.35,7.70320366]
[1734301700692,9.23929363,218.38,218.35,7.70320366]
[1734301702706,2.92,218.38,218.35,7.70320366]
[1734301705401,2.92,218.38,218.36,2.2901]
[1734301710995,2.92,218.38,218.37,2.29]
[1734301711404,2.92,218.42,218.35,11.73239729]
[1734301711604,2.92,218.42,218.4,2.2896]
[1734301712199,1.5362,218.43,218.4,2.2896]
[1734301712404,2.92,218.42,218.4,2.2896]
[1734301712604,1.5362,218.43,218.35,11.73239729]
[1734301712805,6.31929363,218.44,218.41,2.2895]
[1734301713105,9.23929363,218.44,218.36,6.31929363]
[1734301713908,9.23929363,218.44,218.38,2.2898]
[1734301714101,9.23929363,218.44,218.36,6.31929363]
[1734301714403,9.23929363,218.44,218.4,2.2896]
[1734301715803,11.52859363,218.44,218.4,2.2896]
[1734301719814,11.52859363,218.44,218.39,2.2898]
[1734301721711,8.60859363,218.44,218.39,2.2898]
[1734301722007,11.32859363,218.44,218.39,2.2898]
[1734301722310,11.32839363,218.44,218.38,2.2896]
[1734301722510,11.32839363,218.44,218.35,11.73239729]
[1734301722713,11.32839363,218.44,218.36,5.07388784]
[1734301722911,11.32839363,218.44,218.35,11.73239729]
[1734301723112,11.32839363,218.44,218.36,5.07540131]
[1734301723312,11.32839363,218.44,218.35,11.73239729]
[1734301723512,11.32839363,218.44,218.36,5.07758404]
[1734301723713,11.32839363,218.44,218.35,11.73239729]
[1734301723913,11.32839363,218.44,218.36,5.07756049]
[1734301724113,11.32839363,218.44,218.35,11.73239729]
[1734301724314,11.32839363,218.44,218.36,5.07750904]
[1734301724614,11.32839363,218.44,218.35,5.41310366]
[1734301724615,11.32839363,218.44,218.37,5.08138053]
[1734301724812,11.32839363,218.44,218.38,2.2896]
[1734301725415,8.60839363,218.44,218.38,2.2896]
[1734301725709,11.32839363,218.44,218.35,11.73239729]
[1734301725916,2.2898,218.37,218.35,5.41310366]
[1734301726112,2.2898,218.37,218.29,6.31929363]
[1734301726113,6.31929363,218.36,218.29,6.31929363]
[1734301726316,6.31929363,218.36,218.3,5.08532916]
[1734301726613,6.31929363,218.36,218.31,5.08532916]
[1734301726811,6.31929363,218.36,218.3,2.2904]
[1734301726812,2.29,218.35,218.3,2.2904]
[1734301727413,2.2901,218.34,218.29,2.2906]
[1734301727815,2.72,218.37,218.27,6.31929363]
[1734301728013,8.60929363,218.36,218.3,2.2904]
[1734301728209,6.31929363,218.36,218.3,2.2904]
[1734301728615,2.72,218.37,218.33,11.70306602]
[1734301728919,2.72,218.41,218.35,6.31929363]
[1734301730413,2.2895,218.4,218.35,8.60929363]
[1734301730815,2.72,218.41,218.35,8.60929363]
[1734301733116,5.0094,218.41,218.35,8.60929363]
[1734301735922,2.72,218.41,218.35,8.60929363]
[1734301737420,2.72,218.41,218.38,2.2896]
[1734301738019,1.5027,218.48,218.33,5.38377239]
[1734301738020,1.5027,218.48,218.39,6.31929363]
[1734301738222,1.5027,218.48,218.41,6.31929363]
[1734301738223,2.72,218.47,218.41,6.31929363]
[1734301738520,2.72,218.47,218.34,1.4496]
[1734301738521,2.72,218.47,218.37,2.2897]
[1734301738717,2.72,218.47,218.41,6.31929363]
[1734301739224,6.31929363,218.42,218.34,1.4496]
[1734301739427,6.31929363,218.42,218.34,7.76889363]
[1734301739620,2.72,218.47,218.36,6.31929363]
[1734301739621,6.31929363,218.44,218.36,6.31929363]
[1734301740620,6.31929363,218.44,218.33,5.38377239]
[1734301740823,2.72,218.47,218.35,6.31929363]
[1734301741118,6.31929363,218.43,218.35,6.31929363]
[1734301741714,6.31929363,218.43,218.33,5.38377239]
[1734301741914,6.31929363,218.43,218.35,2.2899]
[1734301742119,2.72,218.42,218.35,2.2899]
[1734301742314,2.72,218.42,218.34,6.31929363]
[1734301743422,5.0092,218.42,218.36,2.2899]
[1734301747025,5.0092,218.42,218.37,2.2898]
[1734301750429,2.72,218.42,218.37,2.2898]
[1734301750730,2.72,218.42,218.34,6.31929363]
[1734301750927,2.72,218.42,218.38,2.2896]
[1734301752328,2.6,218.41,218.38,2.2896]
[1734301759830,8.91929363,218.41,218.38,2.2896]
[1734301760433,6.31929363,218.39,218.36,2.2898]
[1734301763340,6.31929363,218.39,218.35,2.2899]
[1734301772440,8.60889363,218.39,218.35,2.2899]
[1734301775645,6.31929363,218.37,218.33,7.67397239]
[1734301775846,2.6,218.36,218.33,7.67397239]
[1734301779541,2.6,218.36,218.33,5.38377239]
[1734301779744,2.6,218.36,218.34,2.2901]
[1734301781148,2.5,218.35,218.34,2.2901]
[1734301782445,2.5,218.39,218.33,5.38377239]
[1734301782951,2.5,218.39,218.36,2.2898]
[1734301783146,2.5,218.39,218.33,5.38377239]
[1734301784449,2.5,218.39,218.36,2.2898]
[1734301785648,6.31929363,218.38,218.25,1.5345]
[1734301785949,6.31929363,218.36,218.28,6.31929363]
[1734301786145,8.60919363,218.36,218.31,2.2904]
[1734301786955,2.29,218.35,218.31,2.2904]
[1734301787152,2.5,218.34,218.31,2.2904]
[1734301787350,2.5,218.34,218.3,2.2904]
[1734301789859,2.5,218.34,218.31,5.44319125]
[1734301790754,4.7901,218.34,218.31,5.44319125]
[1734301791154,2.5,218.34,218.31,5.44319125]
[1734301791453,8.81929363,218.34,218.27,2.2908]
[1734301791652,6.31929363,218.32,218.27,2.2908]
[1734301791861,6.31929363,218.32,218.11,18.92754234]
[1734301791862,6.31929363,218.32,218.23,6.31929363]
[1734301792162,6.31929363,218.3,218.18,2.5]
[1734301792363,6.31929363,218.3,218.21,6.31929363]
[1734301792364,2.5,218.29,218.21,6.31929363]
[1734301792757,2.2907,218.28,218.23,2.2912]
[1734301793562,2.2907,218.28,218.22,2.2912]
[1734301795055,8.60999363,218.28,218.24,5.55746607]
[1734301796265,2.2909,218.26,218.2,2.2915]
[1734301796563,2.2909,218.26,218.21,5.36546887]
[1734301798172,2.5,218.25,218.21,5.36546887]
[1734301799064,4.791,218.25,218.21,5.36546887]
[1734301799764,2.5,218.25,218.21,5.36546887]
[1734301800062,2.5,218.25,218.21,7.65686887]
[1734301800369,4.7911,218.25,218.21,5.36546887]
[1734301803073,2.2913,218.23,218.17,2.2918]
[1734301804381,6.31929363,218.24,218.15,7.82499363]
[1734301804976,2.2913,218.23,218.17,2.2918]
[1734301805575,6.31929363,218.22,218.17,2.2918]
[1734301806175,2.2916,218.2,218.15,2.292]
[1734301806384,2.5,218.19,218.16,5.60106382]
[1734301810386,4.7917,218.19,218.16,5.60106382]
[1734301810987,2.2919,218.17,218.12,2.62048]
[1734301811286,2.5,218.19,218.14,5.36743721]
[1734301812487,2.2918,218.18,218.14,5.36743721]
[1734301816085,2.2919,218.17,218.14,5.36743721]
[1734301820092,2.2919,218.17,218.12,2.62038]
[1734301820289,2.292,218.16,218.12,0.32808]
[1734301820592,2.292,218.16,218.11,2.2925]
[1734301821291,2.292,218.16,218.12,5.54925701]
[1734301822691,2.2921,218.16,218.12,5.54925701]
[1734301824483,2.2921,218.16,218.1,6.31929363]
[1734301824683,2.2921,218.16,218.12,2.2925]
[1734301825083,2.2921,218.16,218.11,2.2926]
[1734301826593,2.5,218.15,218.09,6.31929363]
[1734301826788,4.5856,218.24,218.11,6.31929363]
[1734301826992,4.5856,218.24,218.03,0.46372]
[1734301826993,6.31929363,218.21,218.13,6.31929363]
[1734301827190,6.31929363,218.19,218.14,2.2922]
[1734301827395,2.5,218.18,218.14,2.2922]
[1734301827592,2.5,218.18,218.12,5.53520465]
[1734301827793,6.31929363,218.17,218.12,5.53520465]
[1734301828291,2.2921,218.16,218.12,5.53520465]
[1734301828996,2.2921,218.16,218.12,7.82770465]
[1734301832497,8.81929363,218.18,218.12,7.82770465]
[1734301833595,2.5,218.17,218.14,2.2922]
[1734301835501,2.5,218.17,218.12,5.53520465]
[1734301835698,2.5,218.17,218.13,2.2923]
[1734301836501,2.2921,218.16,218.12,2.2925]
[1734301838001,11.11129363,218.17,218.12,2.2925]
[1734301838207,8.81929363,218.17,218.1,11.7895466]
[1734301838404,8.81929363,218.17,218.13,2.2923]
[1734301838907,2.5,218.16,218.13,2.2923]
[1734301845807,2.5,218.16,218.1,5.47025297]
[1734301846511,6.31929363,218.15,218.1,5.47025297]
[1734301846811,6.31929363,218.15,218.09,2.2927]
[1734301847011,11.39061288,218.23,218.09,5.60594385]
[1734301847311,6.31929363,218.18,218.1,6.31929363]
[1734301847506,4.7719,218.17,218.1,6.31929363]
[1734301847913,2.48,218.16,218.1,6.31929363]
[1734301848414,2.48,218.16,218.12,2.2925]
[1734301850204,8.79929363,218.16,218.12,2.2925]
[1734301850714,11.09139363,218.16,218.12,2.2925]
[1734301852709,8.61139363,218.16,218.12,2.2925]
[1734301852910,2.48,218.15,218.12,2.2925]
[1734301853507,8.61139363,218.16,218.12,2.2925]
[1734301853816,2.48,218.15,218.12,2.2925]
[1734301856613,6.31929363,218.14,218.06,6.31929363]
[1734301857317,8.61159363,218.14,218.09,2.2928]
[1734301857813,6.31929363,218.12,218.03,0.46372]
[1734301858019,2.2926,218.11,218.06,2.293]
[1734301858221,2.48,218.1,218.06,2.293]
[1734301858608,11.09199363,218.1,218.06,2.293]
[1734301863519,8.79929363,218.1,218.06,2.293]
[1734301867724,6.31929363,218.08,218.06,2.293]
[1734301872523,2.48,218.1,218.06,2.293]
[1734301872722,8.79929363,218.1,218.06,2.293]
[1734301872922,2.48,218.1,218.07,2.2929]
[1734301874125,6.31929363,218.11,218.07,2.2929]
[1734301874324,11.38794613,218.19,218.04,11.68729527]
[1734301874626,6.31929363,218.15,218.04,5.36800164]
[1734301874827,6.31929363,218.13,218.04,5.36800164]
[1734301875028,2.48,218.12,218.1,2.2926]
[1734301875325,2.48,218.12,218.04,5.36800164]
[1734301875627,2.48,218.12,218.11,2.2926]
[1734301877125,6.31929363,218.13,218.11,2.2926]
[1734301877529,2.48,218.12,218.11,2.2926]
[1734301887138,6.31929363,218.13,218.11,2.2926]
[1734301887438,2.48,218.12,218.11,2.2926]
[1734301889541,5.61526465,218.24,218.14,2.2922]
[1734301889739,6.31929363,218.17,218.14,2.2922]
[1734301890739,2.48,218.16,218.14,2.2922]
[1734301892338,2.48,218.16,218.15,2.2922]
[1734301893735,2.48,218.16,218.05,1.515]
[1734301893932,8.79929363,218.15,218.07,6.31929363]
[1734301894132,2.48,218.14,218.07,6.31929363]
[1734301894533,2.48,218.14,218.12,2.2924]
[1734301894934,2.48,218.14,218.07,6.31929363]
[1734301895544,2.48,218.14,218.04,5.36800164]
[1734301895742,2.48,218.14,218.07,6.31929363]
[1734301896539,2.48,218.14,218.13,2.2923]
[1734301902450,189.01082891,218.3,218.13,6.31929363]
[1734301902750,6.31929363,218.24,218.15,6.31929363]
[1734301902945,8.79929363,218.24,218.17,2.2918]
[1734301903244,2.903,218.28,218.15,6.31929363]
[1734301903448,13.64087065,218.29,218.19,6.31929363]
[1734301903643,2.48,218.27,218.21,6.31929363]
[1734301903843,2.48,218.3,218.23,6.31929363]
[1734301904043,2.903,218.34,218.25,6.31929363]
[1734301904240,2.48,218.33,218.27,6.31929363]
[1734301904449,2.48,218.33,218.3,2.2904]
[1734301904750,2.48,218.33,218.27,6.31929363]
[1734301906447,8.79929363,218.33,218.25,6.31929363]
[1734301907343,8.79929363,218.33,218.31,2.2904]
[1734301907849,8.79929363,218.33,218.25,6.31929363]
[1734301907850,8.79929363,218.36,218.27,6.31929363]
[1734301908441,2.48,218.37,218.27,6.31929363]
[1734301908644,6.31929363,218.36,218.27,6.31929363]
[1734301909454,6.31929363,218.36,218.33,2.2902]
[1734301909948,2.48,218.37,218.34,2.29]
[1734301910247,2.48,218.37,218.29,11.89338106]
[1734301910456,8.79929363,218.38,218.36,2.2899]
[1734301911747,2.2892,218.43,218.37,2.2898]
[1734301911949,6.31929363,218.41,218.33,6.31929363]
[1734301912748,2.48,218.42,218.35,2.2899]
[1734301913054,8.79929363,218.42,218.33,6.31929363]
[1734301913855,2.48,218.43,218.35,6.31929363]
[1734301914554,191.2619766,218.61,218.33,1.5335]
[1734301914760,6.31929363,218.47,218.39,6.31929363]
[1734301915351,2.48,218.47,218.39,6.31929363]
[1734301915559,2.48,218.47,218.34,1.5677]
[1734301915560,2.48,218.47,218.45,2.289]
[1734301916554,2.48,218.47,218.46,2.2889]
[1734301917156,2.48,218.47,218.43,2.2891]
[1734301917456,6.31929363,218.46,218.37,6.31929363]
[1734301917851,6.31929363,218.46,218.42,5.54193264]
[1734301919855,4.7688,218.47,218.42,5.54193264]
[1734301920061,4.7688,218.47,218.42,7.83113264]
[1734301921352,2.48,218.47,218.42,7.83113264]
[1734301921656,2.48,218.47,218.43,2.2891]
[1734301922860,2.48,218.47,218.44,2.289]
[1734301923058,2.48,218.47,218.42,5.54193264]
[1734301923565,2.48,218.47,218.46,2.2889]
[1734301923856,2.48,218.47,218.42,5.54193264]
[1734301924159,2.48,218.47,218.45,2.289]
[1734301924757,6.31929363,218.5,218.45,2.289]
[1734301924963,2.48,218.49,218.45,2.289]
[1734301925455,6.31929363,218.48,218.42,5.54193264]
[1734301925661,2.2888,218.47,218.42,5.54193264]
[1734301925863,6.31929363,218.46,218.42,5.54193264]
[1734301928366,8.60819363,218.46,218.42,5.54193264]
[1734301929467,2.2891,218.44,218.39,2.2895]
[1734301929671,4.7691,218.44,218.39,2.2895]
[1734301930168,2.2893,218.42,218.36,8.60909363]
[1734301930471,8.60859363,218.42,218.34,6.31929363]
[1734301931567,2.2893,218.42,218.37,2.2898]
[1734301931768,2.48,218.41,218.37,2.2898]
[1734301932871,2.48,218.41,218.38,5.5159668]
[1734301933665,2.48,218.41,218.06,10.90553684]
[1734301933963,6.31929363,218.4,218.3,6.31929363]
[1734301934168,6.31929363,218.4,218.31,5.55775027]
[1734301934373,6.31929363,218.4,218.3,6.31929363]
[1734301934773,2.2899,218.36,218.31,2.2904]
[1734301934973,2.48,218.35,218.3,6.31929363]
[1734301935379,2.48,218.35,218.28,6.31929363]
[1734301936478,4.7701,218.35,218.3,2.2905]
[1734301937375,2.2902,218.34,218.28,8.60999363]
[1734301937773,2.48,218.35,218.06,13.75]
[1734301937970,2.48,218.35,218.27,6.31929363]
[1734301938474,2.2904,218.32,218.27,6.31929363]
[1734301939376,2.2902,218.34,218.29,6.31929363]
[1734301939573,5.5519,218.39,218.31,6.31929363]
[1734301939772,5.5519,218.39,218.33,6.31929363]
[1734301940976,5.5519,218.39,218.34,2.29]
[1734301942272,2.48,218.38,218.34,2.29]
[1734301944276,2.2892,218.43,218.36,2.2898]
[1734301944477,2.2892,218.43,218.35,6.31929363]
[1734301944478,2.48,218.42,218.35,6.31929363]
[1734301945270,2.48,218.42,218.37,2.2898]
[1734301945876,6.31929363,218.43,218.38,2.2897]
[1734301946177,2.48,218.42,218.38,2.2897]
[1734301946679,2.48,218.42,218.39,2.2896]
[1734301947077,2.2891,218.44,218.39,2.2896]
[1734301947290,2.48,218.43,218.4,2.2895]
[1734301949976,9.33149363,218.47,218.3,2.48]
[1734301949977,3.0122,218.47,218.41,2.2894]
[1734301950184,2.48,218.47,218.41,6.31929363]
[1734301950386,2.48,218.48,218.43,6.31929363]
[1734301951587,2.48,218.48,218.44,2.289]
[1734301951884,2.48,218.48,218.43,6.31929363]
[1734301952085,1.5122,218.53,218.45,6.31929363]
[1734301952382,3.9922,218.53,218.45,6.31929363]
[1734301952587,3.9922,218.53,218.48,2.2886]
[1734301952784,2.48,218.53,218.45,6.31929363]
[1734301952985,6.31929363,218.56,218.47,6.31929363]
[1734301953183,2.48,218.54,218.47,6.31929363]
[1734301954592,2.48,218.54,218.51,2.2883]
[1734301956192,2.48,218.54,218.49,8.60779363]
[1734301956389,2.288,218.55,218.49,6.31929363]
[1734301956692,4.768,218.55,218.49,6.31929363]
[1734301957593,4.768,218.55,218.5,2.2884]
[1734301958189,2.48,218.55,218.51,2.2883]
[1734301960695,2.48,218.55,218.5,2.2885]
[1734301962091,2.2882,218.53,218.42,5.52662667]
[1734301962295,6.31929363,218.54,218.45,6.31929363]
[1734301962496,6.31929363,218.54,218.42,5.52662667]
[1734301962697,6.31929363,218.52,218.44,6.31929363]
[1734301963502,2.2884,218.51,218.46,6.31929363]
[1734301963694,2.46,218.5,218.46,6.31929363]
[1734301963989,4.7485,218.5,218.46,6.31929363]
[1734301964193,2.46,218.5,218.46,6.31929363]
[1734301964392,2.46,218.5,218.46,8.60819363]
[1734301965297,2.46,218.5,218.46,6.31929363]
[1734301965495,2.46,218.5,218.47,2.2887]
[1734301966595,2.46,218.5,218.42,5.52662667]
[1734301966596,2.46,218.5,218.45,6.31929363]
[1734301967294,2.46,218.5,218.47,6.31929363]
[1734301967702,6.31929363,218.56,218.47,6.31929363]
[1734301967896,2.46,218.53,218.47,6.31929363]
[1734301968500,4.7482,218.53,218.48,2.2887]
[1734301972098,2.2883,218.52,218.48,2.2887]
[1734301972601,2.2883,218.52,218.47,8.60809363]
[1734301983501,4.7482,218.53,218.48,2.2886]
[1734301983700,2.46,218.53,218.48,2.2886]
[1734301984398,2.2883,218.52,218.47,8.60809363]
[1734301985304,2.2884,218.51,218.47,8.60809363]
[1734301986501,6.31929363,218.52,218.42,5.52662667]
[1734301986704,6.31929363,218.52,218.43,6.31929363]
[1734301987004,6.31929363,218.52,218.44,6.31929363]
[1734301987506,2.2889,218.47,218.44,6.31929363]
[1734301987700,4.7489,218.47,218.44,6.31929363]
[1734301994008,191.2619766,218.57,218.44,6.31929363]
[1734301994209,10.44627068,218.56,218.5,6.31929363]
[1734301994411,2.46,218.55,218.5,6.31929363]
[1734301994908,2.2879,218.56,218.5,6.31929363]
[1734301995208,2.2879,218.56,218.52,6.31929363]
[1734301995209,2.46,218.56,218.52,6.31929363]
[1734301995617,1.5122,218.6,218.52,6.31929363]
[1734301995809,2.46,218.59,218.52,6.31929363]
[1734301996005,2.46,218.59,218.54,6.31929363]
[1734301996314,2.2874,218.61,218.56,2.2878]
[1734301996517,2.46,218.6,218.56,2.2878]
[1734301998907,2.46,218.6,218.54,6.31929363]
[1734301999814,2.46,218.6,218.57,2.2877]
[1734302001612,2.46,218.6,218.59,2.2875]
[1734302002313,6.31929363,218.66,218.6,2.2874]
[1734302002314,2.46,218.64,218.6,2.2874]
[1734302002920,1.5228,218.71,218.6,6.31929363]
[1734302003120,2.46,218.69,218.64,6.31929363]
[1734302004318,2.46,218.69,218.66,2.2868]
[1734302004520,1.4796,218.76,218.66,6.31929363]
[1734302004718,2.2857,218.77,218.7,8.60559363]
[1734302005119,2.46,218.79,218.7,6.31929363]
[1734302005320,2.46,218.79,218.72,6.31929363]
[1734302005516,6.31929363,218.8,218.72,6.31929363]
[1734302005721,8.77929363,218.8,218.72,6.31929363]
[1734302006225,2.46,218.87,218.78,6.31929363]
[1734302007122,6.31929363,218.88,218.8,2.2853]
[1734302007321,2.46,218.87,218.8,8.60459363]
[1734302007518,2.46,218.9,218.82,6.31929363]
[1734302008020,4.7443,218.9,218.83,2.285]
[1734302008526,2.46,218.9,218.84,6.31929363]
[1734302008824,2.46,218.9,218.84,8.60419363]
[1734302009219,2.46,218.9,218.86,6.31929363]
[1734302009423,4.7439,218.94,218.86,8.60399363]
[1734302009621,2.46,218.94,218.88,6.31929363]
[1734302009921,2.46,218.95,218.89,2.2844]
[1734302010221,3.7764,218.96,218.89,2.2844]
[1734302010526,3.7764,218.96,218.88,6.31929363]
[1734302010527,8.77929363,218.97,218.88,6.31929363]
[1734302010723,8.77929363,218.97,218.89,2.2843]
[1734302011122,2.2837,218.96,218.89,2.2843]
[1734302012721,4.7436,218.98,218.9,2.2843]
[1734302016427,2.46,218.98,218.9,2.2843]
[1734302016630,3.05275,219.01,218.92,9.83772747]
[1734302017037,0.48598,219.01,219.0,2.2833]
[1734302020325,2.46,219.11,218.98,11.26602747]
[1734302020527,2.46,219.11,219.03,9.83772747]
[1734302021428,2.2821,219.11,219.05,2.2827]
[1734302024233,2.44,219.15,219.06,2.2826]
[1734302025231,2.44,219.15,219.03,9.83772747]
[1734302025531,2.44,219.15,219.07,2.2825]
[1734302025731,2.44,219.14,219.07,2.2825]
[1734302026433,4.7219,219.14,219.07,2.2825]
[1734302027937,2.44,219.14,219.06,9.83772747]
[1734302028137,4.7215,219.17,219.11,2.2821]
[1734302028838,4.7215,219.17,219.02,2.44]
[1734302028839,56.98,219.38,219.09,9.83772747]
[1734302029034,56.98,219.38,219.12,9.83772747]
[1734302029035,2.44,219.26,219.12,9.83772747]
[1734302029230,2.44,219.26,219.12,12.27772747]
[1734302029738,2.281,219.22,219.16,2.2816]
[1734302029934,2.281,219.22,219.12,12.27772747]
[1734302030136,2.281,219.22,219.12,9.83772747]
[1734302030836,2.2814,219.18,219.12,2.282]
[1734302031031,2.2814,219.18,219.1,2.9941]
[1734302032539,2.2814,219.18,219.11,2.2821]
[1734302033041,2.44,219.21,219.1,5.59384001]
[1734302033238,1.4208,219.2,219.11,9.83772747]
[1734302033933,1.4208,219.2,219.1,5.59384001]
[1734302034333,2.2815,219.17,219.1,5.59384001]
[1734302034531,2.44,219.16,219.1,5.59384001]
[1734302035244,2.2818,219.14,219.1,5.59384001]
[1734302035442,2.44,219.16,219.1,5.59384001]
[1734302037043,2.44,219.16,219.07,9.83772747]
[1734302037239,2.2821,219.11,219.07,9.83772747]
[1734302037434,2.2821,219.11,219.04,9.83772747]
[1734302037941,2.2821,219.11,219.06,2.2826]
[1734302041944,2.2821,219.11,219.09,6.28575517]
[1734302043036,1.4721,219.15,219.04,2.2827]
[1734302043242,2.2822,219.1,219.07,6.28575517]
[1734302044156,2.282,219.12,219.09,6.28575517]
[1734302045051,2.282,219.12,219.07,6.28575517]
[1734302045536,1.4721,219.15,219.07,6.28575517]
[1734302046442,7.75785517,219.15,219.01,2.44]
[1734302046642,6.28575517,219.13,219.05,6.28575517]
[1734302047549,6.28575517,219.13,218.99,8.04574796]
[1734302047744,6.28575517,219.13,219.04,6.28575517]
[1734302048549,2.2824,219.08,219.04,6.28575517]
[1734302049749,2.2825,219.07,219.04,6.28575517]
[1734302050353,2.44,219.1,218.99,7.88914796]
[1734302050354,2.2829,219.04,218.99,7.88914796]
[1734302050548,2.2829,219.04,219.01,6.28575517]
[1734302056050,2.283,219.03,219.01,6.28575517]
[1734302056655,2.283,219.03,218.99,5.60574796]
[1734302056656,2.2831,219.02,218.99,11.89150313]
[1734302057056,6.28575517,219.07,218.99,11.89150313]
[1734302057256,2.44,219.06,218.99,11.89150313]
[1734302057458,2.2829,219.04,218.99,11.89150313]
[1734302057659,2.2829,219.04,219.01,6.28575517]
[1734302057860,2.44,219.06,218.99,5.60574796]
[1734302058161,2.44,219.06,218.99,11.89150313]
[1734302058162,3.8609,219.06,218.99,11.89150313]